Cogmind - Beta 13 @@@ ROGUE MODE // 2024.03.29 @ 12:54:09 Player: darki Result: Destroyed by Striker with Plasma Lance Performance ------------- Evolutions (9) 4500 Regions Visited (20) 4000 Robots Destroyed (52) 260 Value Destroyed (1640) 1640 Prototype IDs (51) 1020 Alien Tech Used (0) 0 Bonus (9397) 9397 TOTAL SCORE: 20817 Bonus ------- Follower Combat Kills 1847 Entered Garrisons 200 Entered DSFs 500 Network Hubs Disabled 200 Aligned with FarCom 300 Built Enhanced Grunts 300 A7 Reached Mainframe 300 Met R17 at Cetus 500 Met MAIN.C 5000 Hacked MAIN.C 300 Friendly Fire -50 Cogmind --------- Core Integrity 0/1600 Matter 285/300 Energy 67/100 System Corruption 8% Temperature Cool (0) Movement Core (50) Location -1/Command Parts ------- > --- POWER (2) -------- (None) > --- PROPULSION (5) --- (None) > --- UTILITY (16) ----- Hacking Suite Improved Hacking Suite Improved Hacking Suite > --- WEAPON (2) ------- (None) > --- INVENTORY (5) ---- Compact Particle Reactor Enhanced Nova Cannon Peak State ------------ > --- POWER ------------ Compact Particle Reactor > --- PROPULSION ------- Biomechanical Wings Impulse Thruster Array Impulse Thruster Array > --- UTILITY ---------- Advanced Power Amplifier Enhanced Optical Array Advanced Sensor Array Advanced Signal Interpreter Improved Reaction Control System Phase Shifter Advanced Force Field Hacking Suite Improved Hacking Suite Improved Hacking Suite Improved Hacking Suite Improved Hacking Suite Improved Hacking Suite Improved Hacking Suite Improved System Shield Improved System Shield > --- WEAPON ----------- Gravity Flail Phasing Sabre > --- INVENTORY -------- Compact Particle Reactor Grenade Launcher Advanced Remote Datajack [Rating: 145] Favorites ----------- Power Ion Engine Engine Ion Engine Power Core Light Fission Core Reactor Compact Particle Reactor Propulsion Aluminum Leg Leg Aluminum Leg Flight Unit Flight Unit Utility Improved Hacking Suite Device Advanced Sensor Array Storage High-capacity Storage Unit Processor Advanced Terrain Scan Processor Hackware Improved Hacking Suite Protection Improved Medium Armor Plating Weapon Heavy Flail Energy Cannon Beam Cannon Ballistic Gun Light Assault Rifle Ballistic Cannon Light Cannon Launcher Grenade Launcher Special Weapon Advanced Remote Datajack Impact Weapon Heavy Flail Slashing Weapon Phasing Sabre Build | -11 -10 -10 -10 -9 -8 -7 -7 -6 -6 -6 -5 -4 -4 -4 -4 -4 -3 -2 -1 -1 ------- Run | Yrd Mat Min Exi Min Mat Fac DSF Fac Gar Fac Fac Fac Ext Cet Arc Hub Res Res Acc Com Slots Evolved 18 | . . . . . 4 2 . 2 . . 2 2 . . . . 2 2 2 . Power 1 | . . . . . . 1 . . . . . . . . . . . . . . Propulsion 3 | . . . . . 2 . . 1 . . . . . . . . . . . . Utility 14 | . . . . . 2 1 . 1 . . 2 2 . . . . 2 2 2 . Weapon . | . . . . . . . . . . . . . . . . . . . . . Parts Attached 109 | 1 13 2 . . 11 4 4 6 2 9 4 8 8 3 10 . 4 . 7 13 Power 16 | . 3 . . . 1 1 . . . 1 1 . 2 1 1 . 1 . . 4 Engine 6 | . 3 . . . 1 1 . . . . . . . . 1 . . . . . Core 5 | . . . . . . . . . . 1 1 . . 1 . . . . . 2 Reactor 5 | . . . . . . . . . . . . . 2 . . . 1 . . 2 Propulsion 17 | . 4 1 . . 4 . 1 1 . . . 1 1 . . . . . 2 2 Treads . | . . . . . . . . . . . . . . . . . . . . . Leg 5 | . 4 1 . . . . . . . . . . . . . . . . . . Wheel . | . . . . . . . . . . . . . . . . . . . . . Hover . | . . . . . . . . . . . . . . . . . . . . . Flight 12 | . . . . . 4 . 1 1 . . . 1 1 . . . . . 2 2 Utility 51 | 1 1 1 . . 5 1 3 1 2 7 3 7 1 . 9 . 2 . 5 2 Device 21 | 1 . 1 . . 2 1 1 . 2 3 1 1 . . 2 . . . 4 2 Storage 2 | . 1 . . . . . . . . . 1 . . . . . . . . . Processor 10 | . . . . . 1 . 2 . . 3 1 3 . . . . . . . . Hackware 16 | . . . . . 1 . . 1 . 1 . 3 . . 7 . 2 . 1 . Protection 2 | . . . . . 1 . . . . . . . 1 . . . . . . . Artifact . | . . . . . . . . . . . . . . . . . . . . . Weapon 25 | . 5 . . . 1 2 . 4 . 1 . . 4 2 . . 1 . . 5 Energy Gun . | . . . . . . . . . . . . . . . . . . . . . Energy Cannon 4 | . 2 . . . . . . . . . . . . . . . . . . 2 Ballistic Gun 2 | . 1 . . . . 1 . . . . . . . . . . . . . . Ballistic Cannon 3 | . 1 . . . . . . 1 . 1 . . . . . . . . . . Launcher 8 | . 1 . . . 1 1 . 2 . . . . 1 1 . . . . . 1 Special Weapon 1 | . . . . . . . . . . . . . . . . . . . . 1 Impact Weapon 3 | . . . . . . . . 1 . . . . . 1 . . 1 . . . Slashing Weapon 4 | . . . . . . . . . . . . . 3 . . . . . . 1 Piercing Weapon . | . . . . . . . . . . . . . . . . . . . . . Special Melee Weapon . | . . . . . . . . . . . . . . . . . . . . . Unidentified Prototypes 5 | . . . . . . . . 1 . . 2 . . . . . 2 . . . Parts Lost 44 | . 1 1 . . 4 . 2 1 3 1 . . 4 1 . . 1 . 4 21 Power 8 | . 1 . . . 1 . 1 . 1 . . . 1 1 . . . . . 2 Propulsion 12 | . . 1 . . 1 . 1 . 2 . . . 2 . . . . . 1 4 Utility 19 | . . . . . 1 . . 1 . 1 . . 1 . . . . . 3 12 Weapon 5 | . . . . . 1 . . . . . . . . . . . 1 . . 3 Highest Loss Streak 12 | . 1 1 . . 4 . 2 1 2 1 . . 2 1 . . 1 . 4 12 To Critical Strikes . | . . . . . . . . . . . . . . . . . . . . . Average Slot Usage (%) 83 | . 98 89 100 100 70 68 84 75 78 72 70 83 79 83 83 84 84 78 77 63 Engine 6 | . 13 14 14 14 8 8 15 9 6 2 . . . . 3 5 . . . . Leg 10 | . 28 26 28 28 12 . . . . . . . . . . . . . . . Flight 10 | . . . . . 10 30 30 26 25 20 17 20 15 15 15 15 14 13 11 6 Device 11 | . 12 5 14 14 9 11 15 12 18 15 7 10 10 10 6 5 4 4 10 10 Storage 5 | . 14 14 14 14 6 . . . . . . . . . . . . . . . Processor 9 | . . . . . 2 7 15 13 13 16 27 24 21 21 14 10 9 8 8 7 Hackware 12 | . . . . . 8 7 7 10 6 6 5 17 16 15 27 36 41 39 36 32 Energy Cannon 3 | . 2 28 28 28 11 . . . . . . . . . . . . . . . Ballistic Gun 3 | . 12 . . . . 2 . . . . . . . . . . . . . . Ballistic Cannon 2 | . 12 . . . . . . . . . . . . . . . . . . . Impact Weapon 2 | . . . . . . . . . 6 6 5 5 5 5 5 5 4 4 4 2 Naked Turns . | . . . . . . . . . . . . . . . . . . . . . Heaviest Build 53 | 13 52 52 52 52 53 16 16 18 10 13 13 13 28 30 30 17 20 20 38 23 Greatest Support 38 | 20 20 20 20 20 20 16 16 21 21 13 13 26 32 32 32 32 32 32 38 32 Greatest Overweight (x) 7 | . 2 5 2 2 2 . 1 . . . . . 7 . . . . . . 1 Average Overweight (x) . | . 1 2 2 2 . . . . . . . . . . . . . . . . Largest Inventory Capacity 20 | 8 20 20 20 20 20 5 5 5 5 5 5 5 5 5 5 5 5 5 5 5 Average Capacity 10 | 8 18 20 20 20 16 5 5 5 5 5 5 5 5 5 5 5 5 5 5 5 Most Carried 20 | 7 18 18 20 19 19 4 5 5 5 5 5 5 5 5 5 5 5 5 5 4 Average Carried 8 | 6 12 18 19 19 13 3 2 4 5 4 5 4 5 5 4 5 4 5 4 3 Final Capacity 20 | 8 20 20 20 20 5 5 5 5 5 5 5 5 5 5 5 5 5 5 5 5 Final Carried 19 | 7 18 18 19 19 4 3 5 5 5 5 5 5 5 5 5 5 5 5 4 2 Class Distribution -------------------- 36% | Mutant 16% | Scavenger-Scout 13% | Wizard-Scout 8% | Commander-Scout 7% | Hacker-Scout 7% | Scout 5% | Wizard-Ninja 3% | Wizard-Mutant Dominant Class ---------------- Mutant | -10/Materials Mutant | -10/Mines Mutant | -10/Exiles Mutant | -9/Mines Scavenger-Mutant | -8/Materials Scavenger-Scout | -7/Factory Scavenger-Scout | -7/DSF Scavenger-Scout | -6/Factory Scavenger-Scout | -6/Garrison Scavenger-Scout | -6/Factory Scout | -5/Factory Hacker-Scout | -4/Factory Commander-Scout | -4/Extension Commander-Scout | -4/Cetus Wizard-Scout | -4/Archives Wizard-Scout | -4/Hub_04(d) Wizard-Scout | -3/Research Wizard-Scout | -2/Research Wizard-Scout | -1/Access Wizard-Ninja | -1/Command Resources | -11 -10 -10 -10 -9 -8 -7 -7 -6 -6 -6 -5 -4 -4 -4 -4 -4 -3 -2 -1 -1 ----------- Run | Yrd Mat Min Exi Min Mat Fac DSF Fac Gar Fac Fac Fac Ext Cet Arc Hub Res Res Acc Com Matter Collected 1812 | 229 334 85 . . 191 23 24 104 125 84 . 38 257 43 80 20 . . . 175 Remotely . | . . . . . . . . . . . . . . . . . . . . . Salvage Created 1444 | 167 443 85 . . 159 23 . 69 . . . 38 75 61 300 24 . . . . Parts 97 | 17 33 5 . . 2 2 . 7 . . . . 1 3 24 3 . . . . Haulers Intercepted 2 | . 2 . . . . . . . . . . . . . . . . . . . Recyclers Shooed 2 | . 2 . . . . . . . . . . . . . . . . . . . Parts Field Recycled . | . . . . . . . . . . . . . . . . . . . . . Retrieved Matter . | . . . . . . . . . . . . . . . . . . . . . Parts Self-Destructed . | . . . . . . . . . . . . . . . . . . . . . Prevented . | . . . . . . . . . . . . . . . . . . . . . Kills | -11 -10 -10 -10 -9 -8 -7 -7 -6 -6 -6 -5 -4 -4 -4 -4 -4 -3 -2 -1 -1 ------- Run | Yrd Mat Min Exi Min Mat Fac DSF Fac Gar Fac Fac Fac Ext Cet Arc Hub Res Res Acc Com Combat Hostiles Destroyed 28 | . 15 2 . . 4 . . 5 . . . . 1 1 . . . . . . Melee 1 | . . . . . . . . . . . . . . 1 . . . . . . Guns 8 | . 8 . . . . . . . . . . . . . . . . . . . Cannons 8 | . 6 2 . . . . . . . . . . . . . . . . . . AOE 9 | . 1 . . . 3 . . 5 . . . . . . . . . . . . Classes Destroyed 12 | 2 6 . . . . 1 . 1 . . . . . 1 . 1 . . . . Worker 1 | . . . . . . . . . . . . . . . . 1 . . . . Builder 1 | . 1 . . . . . . . . . . . . . . . . . . . Tunneler 5 | 5 . . . . . . . . . . . . . . . . . . . . Hauler 2 | . 2 . . . . . . . . . . . . . . . . . . . Recycler 1 | 1 . . . . . . . . . . . . . . . . . . . . Operator 12 | . 1 . . . . . . . . . . 1 . . 9 1 . . . . Watcher 1 | . 1 . . . . . . . . . . . . . . . . . . . Swarmer 10 | . 6 . . . . . . 4 . . . . . . . . . . . . Grunt 16 | . 9 2 . . 4 . . . . . . . 1 . . . . . . . Programmer 1 | . . . . . . . . 1 . . . . . . . . . . . . Cetus Guard 1 | . . . . . . . . . . . . . . 1 . . . . . . Zionite 1 | . . . . . . 1 . . . . . . . . . . . . . . Best Kill Streak 9 | 3 4 2 . . 3 . . 4 . . . 1 1 1 9 2 . . . . Combat Bots Only 4 | . 4 2 . . 3 . . 4 . . . . 1 1 . . . . . . Max Kills in Single Turn 3 | 1 1 1 . . 2 1 . 3 . . . 1 1 1 1 1 . . . . Gunslinging . | . . . . . . . . . . . . . . . . . . . . . Exploded 3 | . 1 . . . 2 . . 3 . . . . . . . . . . . . Melee 1 | . . . . . . . . . . . . . . 1 . . . . . . Uniques/NPCs Destroyed . | . . . . . . . . . . . . . . . . . . . . . Combat | -11 -10 -10 -10 -9 -8 -7 -7 -6 -6 -6 -5 -4 -4 -4 -4 -4 -3 -2 -1 -1 -------- Run | Yrd Mat Min Exi Min Mat Fac DSF Fac Gar Fac Fac Fac Ext Cet Arc Hub Res Res Acc Com Hostile Shots Fired 440 | . 80 8 . . 26 . 20 14 71 . 3 . 23 6 . . . 2 51 136 Missed 205 | . 23 2 . . 6 . 8 4 57 . 2 . 10 3 . . . 2 30 58 Damage Taken 5607 | . 652 98 . . 461 . 215 305 129 26 11 . 378 124 30 . . . 546 2632 Core 1992 | . 142 17 . . 46 . 15 46 19 . . . 52 . . . . . 139 1516 Absorbed by Shields 189 | . . . . . . . . 25 14 . . . 74 . . . . . 76 . Ignored by Resistances 4 | . . . . . . . . . . . 4 . . . . . . . . . Core Remaining (%) 90 | 100 . . . 36 91 . 97 . . 92 100 . . . . 95 100 100 . . Volleys Fired 157 | 28 77 5 . . 9 12 . 8 . . . . 9 1 . . . . . 8 Largest 2 | 2 2 2 . . 2 1 . 1 . . . . 1 1 . . . . . 1 Hottest 120 | 40 120 120 . . 120 30 . 44 . . . . 30 30 . . . . . 120 Shots Fired 261 | 56 139 10 . . 18 12 . 8 . . . . 9 1 . . . . . 8 Gun 124 | 56 58 . . . . 10 . . . . . . . . . . . . . . Cannon 111 | . 79 10 . . 14 . . 4 . . . . . . . . . . . 4 Launcher 24 | . 2 . . . 4 2 . 4 . . . . 9 1 . . . . . 2 Special 2 | . . . . . . . . . . . . . . . . . . . . 2 Kinetic 197 | 56 127 . . . . 10 . 4 . . . . . . . . . . . . Thermal 38 | . 10 10 . . 14 . . . . . . . . . . . . . . 4 Explosive 24 | . 2 . . . 4 2 . 4 . . . . 9 1 . . . . . 2 Electromagnetic . | . . . . . . . . . . . . . . . . . . . . . Robot Hit Streak 22 | 9 22 6 . . 9 4 . 4 . . . . . . . . . . . 2 Robot Miss Streak 4 | 4 2 1 . . 2 2 . . . . . . . 1 . . . . . . Penetration Max . | . . . . . . . . . . . . . . . . . . . . . Secondary Targets . | . . . . . . . . . . . . . . . . . . . . . Shots Hit Robots 173 | 28 87 8 . . 11 7 . 2 . . . 1 6 7 11 3 . . . 2 Core Hits 69 | 10 33 3 . . 6 3 . 5 . . . . 1 2 5 . . . . 1 Critical Kills 1 | . . . . . 1 . . . . . . . . . . . . . . . Critical Parts Destroyed 2 | . . . . . . . . . . . . 1 1 . . . . . . . Critical Strikes 6 | . 2 . . . 1 . . . . . . 1 1 1 . . . . . . Meltdown 1 | . . . . . 1 . . . . . . . . . . . . . . . Blast 2 | . 2 . . . . . . . . . . . . . . . . . . . Smash 2 | . . . . . . . . . . . . 1 1 . . . . . . . Sever 1 | . . . . . . . . . . . . . . 1 . . . . . . Melee Attacks 205 | . . . . . . . . 1 5 22 13 22 18 9 15 7 11 4 29 49 Impact 159 | . . . . . . . . 1 5 22 13 22 14 2 4 2 7 3 24 40 Slashing 46 | . . . . . . . . . . . . . 4 7 11 5 4 1 5 9 Piercing . | . . . . . . . . . . . . . . . . . . . . . Sneak Attacks 12 | . . . . . . . . . . . . . . . 9 3 . . . . Combat Hostiles . | . . . . . . . . . . . . . . . . . . . . . Follow-up Attacks 3 | . . . . . . . . . . . . . . 2 . 1 . . . . Damage Inflicted 4633 | 228 1139 140 . . 398 50 . 354 . . . 87 384 363 1125 284 . . . 81 Guns 638 | 228 360 . . . . 50 . . . . . . . . . . . . . . Cannons 1009 | . 710 140 . . 159 . . . . . . . . . . . . . . . Explosions 879 | . 69 . . . 239 . . 354 . . . . 64 72 . . . . . 81 Melee 2107 | . . . . . . . . . . . . 87 320 291 1125 284 . . . . Ramming . | . . . . . . . . . . . . . . . . . . . . . Kinetic 1348 | 228 1070 . . . . 50 . . . . . . . . . . . . . . Thermal 400 | . . 140 . . 159 . . 101 . . . . . . . . . . . . Explosive 778 | . 69 . . . 239 . . 253 . . . . 64 72 . . . . . 81 Electromagnetic . | . . . . . . . . . . . . . . . . . . . . . Impact 513 | . . . . . . . . . . . . 87 320 50 . 56 . . . . Slashing 1594 | . . . . . . . . . . . . . . 241 1125 228 . . . . Piercing . | . . . . . . . . . . . . . . . . . . . . . Highest Corruption 8 | . . . . . . . . . . 2 . . . 1 1 . . . 1 8 Average Corruption 2 | . . . . . . . . . . 2 . . . 1 1 . . . 1 2 Corruption Purged 1 | . . . . . . . . . . . . . . . 1 . . . . . Corruption Blocked . | . . . . . . . . . . . . . . . . . . . . . Effects 17 | . . . . . . . . . . 3 . . . 1 1 . . . . 12 Message Errors 7 | . . . . . . . . . . 2 . . . . . . . . . 5 Matter Fused 3 | . . . . . . . . . . 1 . . . 1 . . . . . 1 Heat Flow Errors 1 | . . . . . . . . . . . . . . . 1 . . . . . Energy Discharges 3 | . . . . . . . . . . . . . . . . . . . . 3 Data Loss (minor) 2 | . . . . . . . . . . . . . . . . . . . . 2 Data Loss (major) 1 | . . . . . . . . . . . . . . . . . . . . 1 Overload Shots . | . . . . . . . . . . . . . . . . . . . . . Overflow Damage 720 | . 5 . . . 4 . . 53 . . . 87 86 . 311 174 . . . . Projectiles 5 | . 5 . . . . . . . . . . . . . . . . . . . Explosions 69 | . . . . . 4 . . 53 . . . . 12 . . . . . . . Melee 646 | . . . . . . . . . . . . 87 74 . 311 174 . . . . Knockbacks 15 | . 14 . . . . . . . . . . 1 . . . . . . . . Impact 1 | . . . . . . . . . . . . 1 . . . . . . . . Kinetic 11 | . 11 . . . . . . . . . . . . . . . . . . . Secondary 3 | . 3 . . . . . . . . . . . . . . . . . . . Self-Inflicted Damage 144 | . . . . . 47 . . 97 . . . . . . . . . . . . Shots 5 | . . . . . 3 . . 2 . . . . . . . . . . . . Rammed 1 | . . . . . . . . . . . . . . . . . . . . 1 Targets Rammed 1 | . . . . . . . . . . . . . . . . . . . . 1 Kicked . | . . . . . . . . . . . . . . . . . . . . . Crushed . | . . . . . . . . . . . . . . . . . . . . . Highest Temperature 285 | . 240 285 . . 36 3 . 24 . . . . . . 261 . . . . 76 Average Temperature 51 | . 36 153 . . 14 3 . 10 . . . . . . 141 . . . . 41 Received Heat Transfer 819 | . 231 54 . . 207 . 45 52 46 . . . 39 9 9 . . . 17 110 Siege Activations . | . . . . . . . . . . . . . . . . . . . . . Robots Corrupted . | . . . . . . . . . . . . . . . . . . . . . Combat Hostiles . | . . . . . . . . . . . . . . . . . . . . . Parts Fried 2 | . . . . . . . . . . . . 1 . . . 1 . . . . Impact Corruptions 6 | . . . . . . . . . . . . 2 3 . . 1 . . . . Robots Melted 1 | . . . . . 1 . . . . . . . . . . . . . . . Combat Hostiles 1 | . . . . . 1 . . . . . . . . . . . . . . . Parts Melted . | . . . . . . . . . . . . . . . . . . . . . Heat Transferred 679 | . . 296 . . 333 . . 50 . . . . . . . . . . . . Parts Sabotaged . | . . . . . . . . . . . . . . . . . . . . . Parts Stolen . | . . . . . . . . . . . . . . . . . . . . . Parts Stripped . | . . . . . . . . . . . . . . . . . . . . . Power Chain Reactions . | . . . . . . . . . . . . . . . . . . . . . Alert | -11 -10 -10 -10 -9 -8 -7 -7 -6 -6 -6 -5 -4 -4 -4 -4 -4 -3 -2 -1 -1 ------- Run | Yrd Mat Min Exi Min Mat Fac DSF Fac Gar Fac Fac Fac Ext Cet Arc Hub Res Res Acc Com Peak Influence 622 | 30 218 74 . . 111 15 10 305 325 242 110 170 436 622 472 409 33 63 146 153 Initial 248 | . 19 34 . . . 2 10 . 107 170 21 53 83 244 248 165 7 18 16 40 Average 112 | 14 71 49 . . 29 9 5 56 188 176 62 122 249 408 418 166 14 19 43 60 Maximum Alert Level 2 | . 1 . . . . . . 1 1 1 . . 2 2 2 2 . . . . Low Security (%) 83 | 100 97 100 . 100 100 100 100 92 64 70 100 100 41 . . 74 100 100 100 100 Level 1 10 | . 2 . . . . . . 7 35 29 . . 30 71 25 21 . . . . Level 2 5 | . . . . . . . . . . . . . 28 28 74 4 . . . . Level 3 . | . . . . . . . . . . . . . . . . . . . . . Level 4 . | . . . . . . . . . . . . . . . . . . . . . Level 5 . | . . . . . . . . . . . . . . . . . . . . . High Security . | . . . . . . . . . . . . . . . . . . . . . Max Security . | . . . . . . . . . . . . . . . . . . . . . Squads Dispatched 24 | . 3 1 . . 1 . 1 4 . 1 3 1 1 . . 6 . . . 2 Investigation 12 | . 2 1 . . 1 . . 2 . 1 2 . . . . 3 . . . . Extermination 4 | . . . . . . . . 1 . . 1 1 . . . . . . . 1 Reinforcement 7 | . 1 . . . . . 1 1 . . . . 1 . . 2 . . . 1 Assault . | . . . . . . . . . . . . . . . . . . . . . Garrison 1 | . . . . . . . . . . . . . . . . 1 . . . . Intercept . | . . . . . . . . . . . . . . . . . . . . . Searches Triggered . | . . . . . . . . . . . . . . . . . . . . . Construction Impeded 1 | . . . . . . . . . . . . . 1 . . . . . . . Haulers Reinforced . | . . . . . . . . . . . . . . . . . . . . . Active Scanning Responses . | . . . . . . . . . . . . . . . . . . . . . Cargo Convoy Interrupts . | . . . . . . . . . . . . . . . . . . . . . Stealth | -11 -10 -10 -10 -9 -8 -7 -7 -6 -6 -6 -5 -4 -4 -4 -4 -4 -3 -2 -1 -1 --------- Run | Yrd Mat Min Exi Min Mat Fac DSF Fac Gar Fac Fac Fac Ext Cet Arc Hub Res Res Acc Com Distress Signals 19 | . 4 . . . . . . 2 . . . . 1 2 . 4 . . 5 1 Communications Jammed 5 | . . . . . . . . . . . . . . . . . . . . 5 Distress Signals 5 | . . . . . . . . . . . . . . . . . . . . 5 Times Spotted 171 | . 31 2 . . 6 . 3 11 12 1 5 1 20 13 6 8 2 3 17 30 Peak Tracking Total 19 | . 4 2 . . 3 . 3 6 6 1 4 1 4 5 2 6 1 1 17 19 Tactical Retreats 15 | . 3 . . . . . . 1 5 . . . . . . . . . 4 2 Traps | -11 -10 -10 -10 -9 -8 -7 -7 -6 -6 -6 -5 -4 -4 -4 -4 -4 -3 -2 -1 -1 ------- Run | Yrd Mat Min Exi Min Mat Fac DSF Fac Gar Fac Fac Fac Ext Cet Arc Hub Res Res Acc Com Traps Triggered 16 | . 4 . . . . . . 3 4 . 1 . 4 . . . . . . . Indirectly . | . . . . . . . . . . . . . . . . . . . . . Trap Hack Attempts . | . . . . . . . . . . . . . . . . . . . . . Triggered . | . . . . . . . . . . . . . . . . . . . . . Disarmed . | . . . . . . . . . . . . . . . . . . . . . Reprogrammed 16 | . . . . . . . . . . . . . . . . . . . . 16 Reused . | . . . . . . . . . . . . . . . . . . . . . Traps Extracted . | . . . . . . . . . . . . . . . . . . . . . Installed . | . . . . . . . . . . . . . . . . . . . . . Triggered . | . . . . . . . . . . . . . . . . . . . . . Machines | -11 -10 -10 -10 -9 -8 -7 -7 -6 -6 -6 -5 -4 -4 -4 -4 -4 -3 -2 -1 -1 ---------- Run | Yrd Mat Min Exi Min Mat Fac DSF Fac Gar Fac Fac Fac Ext Cet Arc Hub Res Res Acc Com Machines Disabled 15 | . . . . . . . . 6 . . . . 3 . 2 4 . . . . Max in Single Turn 4 | . . . . . . . . 4 . . . . 1 . . . . . . . Garrison Access 2 | . . . . . . . . . . 1 . . . . . . 1 . . . Network Hub 1 | . . . . . . . . . . . . . . . . 1 . . . . Machines Repaired . | . . . . . . . . . . . . . . . . . . . . . Machines Dismantled . | . . . . . . . . . . . . . . . . . . . . . Machines Sabotaged 1 | . . . . . . . . . . . . . . . . 1 . . . . Overloaded Fab Kills . | . . . . . . . . . . . . . . . . . . . . . Hacking | -11 -10 -10 -10 -9 -8 -7 -7 -6 -6 -6 -5 -4 -4 -4 -4 -4 -3 -2 -1 -1 --------- Run | Yrd Mat Min Exi Min Mat Fac DSF Fac Gar Fac Fac Fac Ext Cet Arc Hub Res Res Acc Com Machines Accessed 73 | . 4 1 2 . 4 1 . 12 1 7 4 8 7 1 1 3 3 3 4 7 Terminals 62 | . 3 1 . . 4 1 . 10 1 4 3 8 7 1 . 3 2 3 4 7 Fabricators 1 | . . . . . . . . . . 1 . . . . . . . . . . Repair Stations 1 | . . . . . . . . 1 . . . . . . . . . . . . Recycling Units 1 | . 1 . . . . . . . . . . . . . . . . . . . Scanalyzers 1 | . . . . . . . . . . . 1 . . . . . . . . . Garrison Access 4 | . . . . . . . . 1 . 2 . . . . . . 1 . . . Total Hacks 249 | . 12 3 5 . 14 2 . 23 2 12 11 42 18 1 7 8 17 18 9 45 Successful 153 | . 3 . 5 . 12 1 . 7 1 5 4 12 8 1 7 8 14 16 8 41 Failed 96 | . 9 3 . . 2 1 . 16 1 7 7 30 10 . . . 3 2 1 4 Catastrophic 17 | . 1 . . . 1 . . 4 . 1 1 8 1 . . . . . . . Database Lockouts . | . . . . . . . . . . . . . . . . . . . . . Manual 147 | . 10 3 1 . 11 . . 17 2 7 7 24 7 1 . 5 13 13 2 24 Terminals 221 | . 10 3 . . 14 2 . 19 2 8 9 42 18 1 . 8 13 18 9 45 Fabricators 1 | . . . . . . . . . . 1 . . . . . . . . . . Repair Stations 1 | . . . . . . . . 1 . . . . . . . . . . . . Recycling Units 2 | . 2 . . . . . . . . . . . . . . . . . . . Scanalyzers 2 | . . . . . . . . . . . 2 . . . . . . . . . Garrison Access 10 | . . . . . . . . 3 . 3 . . . . . . 4 . . . Terminal Hacks 100 | . . . 5 . 7 1 . . . 1 1 7 6 1 7 4 7 13 8 32 Record 20 | . . . 4 . . . . . . . 1 1 . . 7 . 3 2 . 2 Part Schematic 5 | . . . . . 3 . . . . . . . . . . . . 2 . . Prototype ID Bank 4 | . . . . . . . . . . . . 1 . . . . . . . 3 Open Door 9 | . . . . . . . . . . . . 1 4 1 . . . . 3 . Open DSF 2 | . . . . . . 1 . . . 1 . . . . . . . . . . Level Access Points 7 | . . . . . 1 . . . . . . 1 . . . 1 1 1 1 1 Branch Access Points 2 | . . . . . . . . . . . . 1 . . . . . . 1 . Emergency Access Points 1 | . . . . . . . . . . . . . . . . . . . . 1 Machine Index 3 | . . . . . . . . . . . . . . . . . 1 1 . 1 Terminal Index 2 | . . . . . 1 . . . . . . 1 . . . . . . . . Fabricator Index 1 | . . . . . . . . . . . . . . . . . . . . 1 Recycling Unit Index 1 | . . . . . . . . . . . . . . . . . . . . 1 Scanalyzer Index 1 | . . . . . . . . . . . . . . . . . . 1 . . Garrison Index 1 | . . . . . . . . . . . . . . . . . . . . 1 Alert Level 1 | . . . . . . . . . . . . . . . . . . . . 1 Unreport Threat 12 | . . . . . 2 . . . . . . . 1 . . 3 2 1 3 . Locate Traps 4 | . . . . . . . . . . . . . . . . . . . . 4 Reprogram Traps 4 | . . . . . . . . . . . . . . . . . . . . 4 Dispatch Records 1 | . . . . . . . . . . . . . . . . . . . . 1 Security Status 1 | . . . . . . . . . . . . . . . . . . . . 1 Surveillance Status 1 | . . . . . . . . . . . . . . . . . . . . 1 Registered Components 2 | . . . . . . . . . . . . . . . . . . 1 . 1 Registered Prototypes 2 | . . . . . . . . . . . . . . . . . . 1 . 1 Zone Layout 10 | . . . . . . . . . . . . 1 1 . . . . 2 . 6 Security Stations 1 | . . . . . . . . . . . . . . . . . . 1 . . Derelict Proto ID Bank 1 | . . . 1 . . . . . . . . . . . . . . . . . Disengage Seal 1 | . . . . . . . . . . . . . . . . . . . . 1 Fabricator Hacks 1 | . . . . . . . . . . 1 . . . . . . . . . . Network Status 1 | . . . . . . . . . . 1 . . . . . . . . . . Repair Station Hacks 1 | . . . . . . . . 1 . . . . . . . . . . . . Refit 1 | . . . . . . . . 1 . . . . . . . . . . . . Recycling Unit Hacks 1 | . 1 . . . . . . . . . . . . . . . . . . . Retrieve Components 1 | . 1 . . . . . . . . . . . . . . . . . . . Scanalyzer 1 | . . . . . . . . . . . 1 . . . . . . . . . Insert Component 1 | . . . . . . . . . . . 1 . . . . . . . . . Garrison Access Hacks 3 | . . . . . . . . 1 . 1 . . . . . . 1 . . . Unlock Access 1 | . . . . . . . . 1 . . . . . . . . . . . . Seal Access 2 | . . . . . . . . . . 1 . . . . . . 1 . . . Unauthorized Hacks 46 | . 2 . . . 5 . . 5 1 2 2 5 2 . . 4 6 3 . 9 Terminals 43 | . 2 . . . 5 . . 5 1 2 2 5 2 . . 4 3 3 . 9 Track 2 | . . . . . . . . . . . . . . . . . . . . 2 Assimilate 6 | . . . . . 1 . . 1 . . . . . . . . 1 1 . 2 Botnet 28 | . 2 . . . 4 . . 4 . 2 2 5 2 . . 1 2 2 . 2 Disrupt 2 | . . . . . . . . . . . . . . . . . . . . 2 Operators 1 | . . . . . . . . . . . . . . . . . . . . 1 Sabotage 3 | . . . . . . . . . . . . . . . . 3 . . . . Override 1 | . . . . . . . . . 1 . . . . . . . . . . . Fabricators . | . . . . . . . . . . . . . . . . . . . . . Repair Stations . | . . . . . . . . . . . . . . . . . . . . . Recycling Units . | . . . . . . . . . . . . . . . . . . . . . Scanalyzers . | . . . . . . . . . . . . . . . . . . . . . Garrison Access 3 | . . . . . . . . . . . . . . . . . 3 . . . Broadcast 1 | . . . . . . . . . . . . . . . . . 1 . . . Reprogram 1 | . . . . . . . . . . . . . . . . . 1 . . . Watchers 1 | . . . . . . . . . . . . . . . . . 1 . . . Data Cores Recovered 1 | . . . . . . . . . . . . 1 . . . . . . . . Used 1 | . . . . . . . . . . . . 1 . . . . . . . . Hacking Detections 52 | . 3 1 . . 3 1 . 12 1 5 3 7 3 . . 1 3 1 1 7 Full Trace Events 8 | . 1 1 . . 1 . . 2 . 1 2 . . . . . . . . . Feedback Events . | . . . . . . . . . . . . . . . . . . . . . Feedback Blocked . | . . . . . . . . . . . . . . . . . . . . . Robot Schematics Acquired . | . . . . . . . . . . . . . . . . . . . . . Robots Built . | . . . . . . . . . . . . . . . . . . . . . Authchips . | . . . . . . . . . . . . . . . . . . . . . Time . | . . . . . . . . . . . . . . . . . . . . . Total Robot Build Rating . | . . . . . . . . . . . . . . . . . . . . . Part Schematics Acquired 5 | . . . . . 3 . . . . . . . . . . . . 2 . . Parts Built . | . . . . . . . . . . . . . . . . . . . . . Authchips . | . . . . . . . . . . . . . . . . . . . . . Time . | . . . . . . . . . . . . . . . . . . . . . Total Part Build Rating . | . . . . . . . . . . . . . . . . . . . . . Parts Repaired . | . . . . . . . . . . . . . . . . . . . . . Time . | . . . . . . . . . . . . . . . . . . . . . Parts Recycled . | . . . . . . . . . . . . . . . . . . . . . Recycled Matter . | . . . . . . . . . . . . . . . . . . . . . Retrieved Matter . | . . . . . . . . . . . . . . . . . . . . . Retrieved Components 9 | . 9 . . . . . . . . . . . . . . . . . . . Parts Scanalyzed . | . . . . . . . . . . . . . . . . . . . . . Part Schematics Acquired . | . . . . . . . . . . . . . . . . . . . . . Parts Damaged . | . . . . . . . . . . . . . . . . . . . . . Bothacking | -11 -10 -10 -10 -9 -8 -7 -7 -6 -6 -6 -5 -4 -4 -4 -4 -4 -3 -2 -1 -1 ------------ Run | Yrd Mat Min Exi Min Mat Fac DSF Fac Gar Fac Fac Fac Ext Cet Arc Hub Res Res Acc Com Used RIF Installer . | . . . . . . . . . . . . . . . . . . . . . Robots Hacked 1 | . . . . . . . . . . . . . . . . . . . . 1 Non-combat . | . . . . . . . . . . . . . . . . . . . . . Combat 1 | . . . . . . . . . . . . . . . . . . . . 1 Robot Hacks Applied 1 | . . . . . . . . . . . . . . . . . . . . 1 parse_system 1 | . . . . . . . . . . . . . . . . . . . . 1 Manual 1 | . . . . . . . . . . . . . . . . . . . . 1 Relay Couplers Released . | . . . . . . . . . . . . . . . . . . . . . Fabnet Peak Effective % . | . . . . . . . . . . . . . . . . . . . . . Robots Rewired 13 | . . . . . . . . . . . . . 13 . . . . . . . Allies Hacked . | . . . . . . . . . . . . . . . . . . . . . Hacks Repelled . | . . . . . . . . . . . . . . . . . . . . . Allies | -11 -10 -10 -10 -9 -8 -7 -7 -6 -6 -6 -5 -4 -4 -4 -4 -4 -3 -2 -1 -1 -------- Run | Yrd Mat Min Exi Min Mat Fac DSF Fac Gar Fac Fac Fac Ext Cet Arc Hub Res Res Acc Com Total Allies 34 | . . . . 2 1 . . . . . . . 24 5 . . 1 1 . . Largest Group 21 | . . . . 2 2 2 1 . . . . . 21 21 14 10 1 2 2 . Highest-Rated Group 1031 | . . . . 43 43 22 10 . . . . . 972 1031 927 595 26 71 71 . Highest-Rated Ally 159 | . . . . 31 31 12 10 . . . . . 159 146 146 96 26 45 45 . Total Orders 5 | . . . . . . . . . . . . . . . 5 . . . . . ROAM 1 | . . . . . . . . . . . . . . . 1 . . . . . FOLLOW 4 | . . . . . . . . . . . . . . . 4 . . . . . Ally Attacks 291 | . . . . . 13 . . . . . . . 94 113 33 38 . . . . Total Damage 10061 | . . . . . 232 . . . . . . . 3020 3927 1100 1782 . . . . Kills 46 | . . . . . 1 . . . . . . . 17 16 4 8 . . . . Allies Corrupted . | . . . . . . . . . . . . . . . . . . . . . Allies Melted . | . . . . . . . . . . . . . . . . . . . . . Intel | -11 -10 -10 -10 -9 -8 -7 -7 -6 -6 -6 -5 -4 -4 -4 -4 -4 -3 -2 -1 -1 ------- Run | Yrd Mat Min Exi Min Mat Fac DSF Fac Gar Fac Fac Fac Ext Cet Arc Hub Res Res Acc Com Robot Analysis Total . | . . . . . . . . . . . . . . . . . . . . . Derelict Logs Recovered 1 | . . 1 . . . . . . . . . . . . . . . . . . Drone Launches . | . . . . . . . . . . . . . . . . . . . . . Drone Recoveries . | . . . . . . . . . . . . . . . . . . . . . Exploration | -11 -10 -10 -10 -9 -8 -7 -7 -6 -6 -6 -5 -4 -4 -4 -4 -4 -3 -2 -1 -1 ------------- Run | Yrd Mat Min Exi Min Mat Fac DSF Fac Gar Fac Fac Fac Ext Cet Arc Hub Res Res Acc Com Turns Passed 7840 | 129 1861 138 543 144 299 77 46 426 294 455 334 333 771 219 185 94 175 149 337 831 Spaces Moved 9096 | 23 569 45 208 56 158 133 68 1066 474 875 647 682 1082 292 215 160 366 328 613 1036 Core 109 | . . . . . . . . . . . . . 5 . . . . . . 104 Treads . | . . . . . . . . . . . . . . . . . . . . . Legs 965 | 23 569 45 208 56 64 . . . . . . . . . . . . . . . Wheels . | . . . . . . . . . . . . . . . . . . . . . Hover . | . . . . . . . . . . . . . . . . . . . . . Flight 8022 | . . . . . 94 133 68 1066 474 875 647 682 1077 292 215 160 366 328 613 932 Fastest Speed 27 | 120 120 260 260 260 31 31 29 27 27 32 32 29 29 34 34 34 34 34 34 37 Average Speed 56 | 120 232 269 260 260 123 31 36 28 35 33 32 29 33 34 34 34 34 34 37 43 Slowest Speed 470 | 120 260 470 260 260 260 31 114 29 37 37 32 32 400 37 34 34 34 34 42 100 Overloaded Moves . | . . . . . . . . . . . . . . . . . . . . . Propulsion Burnouts . | . . . . . . . . . . . . . . . . . . . . . Robots Hopped 31 | . . . . . 1 . 2 3 3 . . . 8 . . 1 2 3 2 6 Cave-ins Triggered 3 | . . . . . . . . . . 1 . . . . . . . . 1 1 Exploration Rate (%) 36 | 3 76 7 60 23 21 3 49 24 49 37 19 16 79 87 98 24 15 9 22 41 Regions Visited 20 Branch Regions 8 Pre-discovered Areas 1 | . . . 1 . . . . . . . . . . . . . . . . . Known Exits Taken 13 | . . . . . 1 1 . 1 . 1 1 1 1 1 1 1 1 1 1 . Unknown Exits Taken 5 | 1 1 1 1 1 . . . . . . . . . . . . . . . . Scrap Searched . | . . . . . . . . . . . . . . . . . . . . . Spaces Dug 206 | . 6 . . . . 10 . 1 3 21 13 20 51 . . 2 8 3 24 44 Terrain Destroyed 322 | . 10 . . . 17 10 . 73 3 21 13 20 66 8 . 2 8 3 24 44 Melee 136 | . . . . . . . . 1 3 21 13 20 . . . 2 8 3 24 41 Projectile 3 | . . . . . . . . . . . . . . . . . . . . 3 AOE 183 | . 10 . . . 17 10 . 72 . . . . 66 8 . . . . . . Terrain Rammed . | . . . . . . . . . . . . . . . . . . . . . Walls Destroyed . | . . . . . . . . . . . . . . . . . . . . . Machines Disabled . | . . . . . . . . . . . . . . . . . . . . . Actions | -11 -10 -10 -10 -9 -8 -7 -7 -6 -6 -6 -5 -4 -4 -4 -4 -4 -3 -2 -1 -1 --------- Run | Yrd Mat Min Exi Min Mat Fac DSF Fac Gar Fac Fac Fac Ext Cet Arc Hub Res Res Acc Com Total 11270 | 79 976 52 212 56 247 158 86 1173 588 1005 752 778 1445 397 311 189 402 358 678 1328 Wait 1438 | 27 301 1 . 1 59 8 9 67 63 89 69 62 200 95 58 26 21 29 33 220 Move 9022 | 22 568 44 207 55 155 132 63 1060 466 874 646 681 1069 291 214 157 362 321 608 1027 Hop 23 | . . . . . 1 . 2 3 3 . . . 4 . . 1 1 3 2 3 Pick Up 32 | 1 10 . 3 . . . 5 2 . 1 . 1 . . 5 . 2 1 . 1 Fast Attach 61 | 1 5 2 . . 1 1 3 2 2 5 4 6 6 1 8 . 3 . 5 6 Attach 33 | . 1 . . . 10 3 1 4 . 2 . . . . 1 . 2 . 2 7 Detach 17 | . . . . . 1 2 . 3 . 4 . . . . 1 . 1 . 1 4 Swap 16 | . 7 . . . . . . . . 2 . 2 2 2 1 . . . . . Drop 61 | . 7 . 2 . 11 . 3 3 1 6 2 4 2 . 12 . 2 1 3 2 Fire 157 | 28 77 5 . . 9 12 . 8 . . . . 9 1 . . . . . 8 Melee 187 | . . . . . . . . 1 5 22 13 22 17 7 11 5 8 3 24 49 Ram 1 | . . . . . . . . . . . . . . . . . . . . 1 Kick . | . . . . . . . . . . . . . . . . . . . . . Crush . | . . . . . . . . . . . . . . . . . . . . . Escape Stasis 133 | . . . . . . . . 20 48 . 18 . 47 . . . . . . . Rewire 89 | . . . . . . . . . . . . . 89 . . . . . . . Trap . | . . . . . . . . . . . . . . . . . . . . . Miscellaneous . | . . . . . . . . . . . . . . . . . . . . . Route ------- -11/Scrapyard -10/Materials (discovered 3 exits: [*Mat x2] / *Min) -10/Mines -10/Exiles -9/Mines -8/Materials (discovered 3 exits: *Fac x3) -7/Factory -7/DSF -6/Factory -6/Garrison (discovered 3 exits: *Fac x3) -6/Factory -5/Factory (discovered 3 exits: *Fac / *Upp x2) -4/Factory (discovered 9 exits: Res x4 / Upp x2 / *Ext x2 / Arm) -4/Extension (discovered 2 exits: *Res / *Cet) -4/Cetus (discovered 2 exits: *Res / *Arc) -4/Archives (discovered 3 exits: *Res / *Hub x2) -4/Hub_04(d) (discovered 4 exits: *Res x4) -3/Research (discovered 4 exits: *Res x3 / [*Qua]) -2/Research (discovered 3 exits: *Acc x3) -1/Access (discovered 2 exits: Sur / *Com) -1/Command (discovered 2 exits: Sur x2) History --------- Turn | Location | Event 30 | -11/Scrapyard | Discovered new exit (range 3) 130 | -11/Scrapyard | Entered Materials 266 | -10/Materials | Discovered new exit (range 9) 326 | -10/Materials | Build established: Mutant 1720 | -10/Materials | Discovered new exit (range 16) 1749 | -10/Materials | Core integrity fell below 50% 1869 | -10/Materials | Discovered new exit (range 15) 1991 | -10/Materials | Entered Mines 2108 | -10/Mines | Learned Materials stockpile data 2116 | -10/Mines | Deemed a non-threat by the Exiles lab entrance 2119 | -10/Mines | Discovered new exit (range 5) 2129 | -10/Mines | Entered Exiles 2196 | -10/Exiles | Met 8R-AWN 2238 | -10/Exiles | Met EX-HEX 2311 | -10/Exiles | Met EX-BIN 2347 | -10/Exiles | Aligned with FarCom system 2350 | -10/Exiles | Given EX-Vault access code 2410 | -10/Exiles | Opened EX-Vault 2426 | -10/Exiles | Found Cloak of Protection 2482 | -10/Exiles | Warned to stay clear of 0b10 Research branches 2517 | -10/Exiles | Exiles lab attacked by MAIN.C 2568 | -10/Exiles | Learned location of Zion (-6) 2651 | -10/Exiles | Discovered new exit (range 10) 2672 | -10/Exiles | Left Exiles lab with Cloak of Protection 2672 | -10/Exiles | Entered Mines 2759 | -9/Mines | Discovered new exit (range 14) 2816 | -9/Mines | Entered Materials 2816 | -8/Materials | Accompanied by 2 allies 2816 | -8/Materials | Evolved 4 slots: Propulsion x2, Utility x2 2821 | -8/Materials | Led the pair of lost Derelicts to an unsafe place 3043 | -8/Materials | Lost 4 parts (1p1n1u1w) 3046 | -8/Materials | Identified exit to Factory 3115 | -8/Materials | Entered Factory 3115 | -7/Factory | Accompanied by 2 allies 3115 | -7/Factory | Evolved 2 slots: Power x1, Utility x1 3153 | -7/Factory | Identified exit to DSF 3192 | -7/Factory | Entered DSF 3192 | -7/DSF | Accompanied by 1 ally 3216 | -7/DSF | Discovered new exit (range 11) 3217 | -7/DSF | Additional patrols routed to DSF 3238 | -7/DSF | Entered Factory 3238 | -6/Factory | Evolved 2 slots: Propulsion x1, Utility x1 3273 | -6/Factory | Build established: Scavenger-Scout 3362 | -6/Factory | Spotted B-75 Beast 3664 | -6/Factory | Identified exit to Garrison 3664 | -6/Factory | Entered Garrison 3710 | -6/Garrison | Spotted B-75 Beast 3710 | -6/Garrison | Spotted B-75 Beast 3724 | -6/Garrison | Spotted B-75 Beast 3725 | -6/Garrison | Spotted B-75 Beast 3734 | -6/Garrison | Triggered checkpoint 3752 | -6/Garrison | Discovered new exit (range 3) 3778 | -6/Garrison | Triggered checkpoint 3804 | -6/Garrison | Attempted to access garrison exit controls, blocked by remote lockdown 3869 | -6/Garrison | Identified exit to Factory 3945 | -6/Garrison | Triggered checkpoint 3958 | -6/Garrison | Entered Factory 4140 | -6/Factory | Crushed by falling debris 4354 | -6/Factory | Discovered new exit (range 15) 4409 | -6/Factory | Identified exit to Factory 4413 | -6/Factory | Entered another Factory area 4413 | -5/Factory | Evolved 2 slots: Utility x2 4440 | -5/Factory | Discovered new exit (range 6) 4443 | -5/Factory | Identified exit to Upper Caves 4453 | -5/Factory | Discovered exit to Upper Caves (range 18) 4476 | -5/Factory | Discovered new exit (range 15) 4566 | -5/Factory | Build established: Scout 4746 | -5/Factory | Identified exit to Factory 4747 | -5/Factory | Entered another Factory area 4747 | -4/Factory | Evolved 2 slots: Utility x2 4935 | -4/Factory | Identified exit to Research 5034 | -4/Factory | Identified exit to Upper Caves 5034 | -4/Factory | Identified exit to Extension 5034 | -4/Factory | Identified exit to Armory 5080 | -4/Factory | Entered Extension 5102 | -4/Extension | Rescued a captive Derelict 5103 | -4/Extension | Rescued a captive Derelict 5109 | -4/Extension | Build established: Hacker-Scout 5144 | -4/Extension | Spotted B-86 Titan 5222 | -4/Extension | Rescued A7 5420 | -4/Extension | Rescued a captive Derelict 5440 | -4/Extension | Rescued a captive Derelict 5441 | -4/Extension | Rescued a captive Derelict 5448 | -4/Extension | Rescued a captive Derelict 5562 | -4/Extension | Rescued a captive Derelict 5563 | -4/Extension | Rescued a captive Derelict 5586 | -4/Extension | Rescued a captive Derelict 5587 | -4/Extension | Rescued a captive Derelict 5726 | -4/Extension | Discovered exit to Research (range 10) 5726 | -4/Extension | Discovered new exit (range 6) 5734 | -4/Extension | Identified exit to Cetus 5851 | -4/Extension | Entered Cetus 5851 | -4/Cetus | Accompanied by 21 allies (A7) 5855 | -4/Cetus | Spotted Cetus Guard 5856 | -4/Cetus | Acquired a Cetus Manufacturing Module code from A7 5857 | -4/Cetus | Spotted Cetus Guard 5861 | -4/Cetus | Spotted Cetus Guard 5861 | -4/Cetus | Spotted Cetus Guard 5873 | -4/Cetus | Allies destroyed Cetus Guard 5879 | -4/Cetus | Allies destroyed Cetus Guard 5881 | -4/Cetus | Allies destroyed Cetus Guard 5884 | -4/Cetus | Destroyed Cetus Guard 5900 | -4/Cetus | Started Cetus Manufacturing Module 5905 | -4/Cetus | Lost 5 allies 5915 | -4/Cetus | Escorted A7 to Cetus Mainframe 5919 | -4/Cetus | Discovered new exit (range 21) 5925 | -4/Cetus | Manufactured an Enhanced Grunt 5930 | -4/Cetus | Spotted Cetus Guard 5950 | -4/Cetus | Manufactured an Enhanced Grunt 5971 | -4/Cetus | Spotted Cetus Guard 5972 | -4/Cetus | Spotted Cetus Guard 5975 | -4/Cetus | Manufactured an Enhanced Grunt 5987 | -4/Cetus | Spotted Cetus Guard 5999 | -4/Cetus | Discovered exit to Research (range 22) 6000 | -4/Cetus | Manufactured an Enhanced Grunt 6000 | -4/Cetus | Allies destroyed Cetus Guard 6005 | -4/Cetus | Allies destroyed Cetus Guard 6007 | -4/Cetus | Allies destroyed Cetus Guard 6014 | -4/Cetus | Met Revision 17 6018 | -4/Cetus | Build established: Commander-Scout 6025 | -4/Cetus | Manufactured an Enhanced Grunt 6033 | -4/Cetus | Identified exit to Archives 6042 | -4/Cetus | Lost 7 allies 6070 | -4/Cetus | Entered Archives 6070 | -4/Archives | Accompanied by 14 allies (A7) 6075 | -4/Archives | Received a hacking code to weaken MAIN.C 6097 | -4/Archives | Discovered new exit (range 22) 6112 | -4/Archives | Discovered new exit (range 22) 6114 | -4/Archives | Unable to access archive contents 6127 | -4/Archives | Lost 3 allies 6150 | -4/Archives | Discovered exit to Research (range 13) 6245 | -4/Archives | Identified exit to Hub_04(d) 6255 | -4/Archives | Entered Hub_04(d) 6255 | -4/Hub_04(d) | Accompanied by 10 allies 6314 | -4/Hub_04(d) | Garrison activated, responded to threat 6319 | -4/Hub_04(d) | Network Hub disabled 6328 | -4/Hub_04(d) | Lost 4 allies 6349 | -4/Hub_04(d) | Entered Research 6349 | -3/Research | Evolved 2 slots: Utility x2 6358 | -3/Research | Spotted B-86 Titan 6390 | -3/Research | Identified exit to Research 6424 | -3/Research | Build established: Wizard-Scout 6523 | -3/Research | Discovered new exit (range 19) 6524 | -3/Research | Entered another Research area 6524 | -2/Research | Accompanied by 1 ally 6524 | -2/Research | Evolved 2 slots: Utility x2 6544 | -2/Research | Identified exit to Access 6673 | -2/Research | Entered Access 6673 | -1/Access | Accompanied by 2 allies 6673 | -1/Access | Evolved 2 slots: Utility x2 6791 | -1/Access | Spotted B-99 Colossus 6941 | -1/Access | Crushed by falling debris 6960 | -1/Access | Identified exit to Command 6960 | -1/Access | Identified exit to Surface 7010 | -1/Access | Entered Command 7023 | -1/Command | Lost 4 parts (1n3u) 7166 | -1/Command | Disengaged cave seal 7166 | -1/Command | Wild derelicts emerged from the dark tunnel 7472 | -1/Command | Build established: Wizard-Ninja 7537 | -1/Command | Spotted M Guard 7537 | -1/Command | Spotted M Guard 7537 | -1/Command | Spotted Combat Programmer 7547 | -1/Command | Spotted Combat Programmer 7566 | -1/Command | Crushed by falling debris 7606 | -1/Command | Met MAIN.C 7606 | -1/Command | Hacked MAIN.C using A7's code 7617 | -1/Command | 0b10 Conduit disabled 7669 | -1/Command | Lost 12 parts (1p2n7u2w) 7718 | -1/Command | Core integrity fell below 50% 7739 | -1/Command | Spotted Executioner 7739 | -1/Command | Spotted Executioner 7739 | -1/Command | Spotted Striker 7739 | -1/Command | Spotted Alpha 7 7739 | -1/Command | Spotted Executioner 7739 | -1/Command | Spotted Executioner 7739 | -1/Command | Spotted Striker 7739 | -1/Command | Spotted Alpha 7 7826 | -1/Command | Core integrity fell below 20% 7838 | -1/Command | Spotted B-99 Colossus 7841 | -1/Command | Destroyed by Striker with Plasma Lance Last Messages --------------- 07791_ K-01 Serf collects debris. 07803_ XGY6I GEGD 07838_ Slug penetrates Door. 07838_ Slug penetrates Wall. 07838_ Xenon Bombardment Thruster destroyed. 07840_ System corrupted: Energy discharge (-35). 07841_ Slammed into B-99 Colossus. 07841_ Critical hit (Impale). Map ----- +----------------------------------------------------+ | | | | | | | ?????????????????????????????????????????????????? | | ?????????????????????????????????????????????????? | | ?????????????????????????????????????????????????? | | ?????????????????????????????????????????????????? | | ?????????????????????????????????????????????????? | | ?????????????????????????????????????????????????? | | ?????????????????????????????????????????????????? | | ?????????????????????????????????????????????????? | | ?????????????????????????????????????????????????? | | ?????????????????????????? ?????????????????????? | | ?????????????????????????# ?????????????????????? | | ?????????????????????????# ""??? #??????????????? | | ?????????????????????????# """?? #??????????????? | | ?????????????#???????????# ""? #??????????????? | | ????????????? ###???????# #??????????????? | | ???????????? ** ??????# ! #??????????????? | | ???????????? ** ?????+ s "" #??????????????? | | ???????????? * ????# """" #??????????????? | | ??????????? ???#s """" #??????????????? | | ??????????? o ??#s "" #??????????????? | | ??????????# ### s #??????????????? | | ??????????? BB# s #??????????????? | | ???????????????" "" BB@ #??????????????? | | ???????????????"T"" ##;KK [#??????????????? | | ???????????????""" ?????## #??????????????? | | ?????????????????????????#####+####??????????????? | | ?????????????????????????????# #?????????????????? | | ????????????????????????????## #?????????????????? | | ????????????????????????????#" ##????????????????? | | ????????????????????????????#]pw################## | | ????????????????????????????# ! % | | ????????????????????????????#= ############## | | ??????????????????????????####"#####?????????# % | | ??????????????????????????# E #?????????# | | ??????????????????????????# * #?????????# | | ??????????????????????????# ########### | | ??????????????????????????# """E + | | ??????????????????????????#% """"E ########+### | | ?????????????????????????## %"""" ######? ?# ## | | ?????????????????????? ??#" """" + #? ?# #? | | ???????????? ??????? ??## ###### # #? | | ???????????? ??